bitfinex/quotes_BTCUSD_20250224
["timestamp","ask_amount","ask_price","bid_price","bid_amount"]
[1740371190406,0.01782716,95559.0,95545.0,0.156993]
[1740371190545,0.01782716,95559.0,95546.0,0.10390149]
[1740371190745,0.209246,95582.0,95546.0,0.10390149]
[1740371190952,0.00545675,95579.0,95547.0,0.0759]
[1740371191163,0.156961,95565.0,95558.0,0.156971]
[1740371191478,0.031458,95577.0,95547.0,0.0759]
[1740371191479,0.01822084,95561.0,95559.0,0.10264569]
[1740371191682,0.0008503,95561.0,95559.0,0.10264569]
[1740371192500,0.0008503,95561.0,95560.0,0.00370993]
[1740371193778,0.01825396,95561.0,95560.0,0.00370993]
[1740371194537,0.209268,95571.0,95560.0,0.00370993]
[1740371194870,0.156961,95565.0,95560.0,0.00370993]
[1740371195049,0.156959,95567.0,95560.0,0.00470993]
[1740371195218,0.156959,95567.0,95560.0,0.00570993]
[1740371195421,0.209268,95571.0,95560.0,0.00470993]
[1740371195624,0.20927,95570.0,95560.0,0.00370993]
[1740371195977,0.002,95571.0,95568.0,0.156955]
[1740371196177,0.004,95571.0,95568.0,0.156955]
[1740371196306,0.004,95571.0,95569.0,0.00370444]
[1740371196510,0.002,95571.0,95569.0,0.00370444]
[1740371196714,0.01804462,95572.0,95569.0,0.00370444]
[1740371196910,0.01804462,95572.0,95565.0,0.209279]
[1740371197197,0.0008501,95572.0,95571.0,0.156951]
[1740371197418,0.0008501,95572.0,95569.0,0.156953]
[1740371197556,0.0008501,95572.0,95571.0,0.00347217]
[1740371197743,0.0008501,95572.0,95570.0,0.10411847]
[1740371198177,0.0008501,95572.0,95570.0,0.10211847]
[1740371198580,0.0018501,95572.0,95570.0,0.10211847]
[1740371198782,0.0018501,95572.0,95571.0,0.005]
[1740371198984,0.1588001,95572.0,95570.0,0.10211847]
[1740371199190,0.0018501,95572.0,95570.0,0.10364569]
[1740371199397,0.0008501,95572.0,95571.0,0.00347217]
[1740371199815,0.0008501,95572.0,95570.0,0.10364569]
[1740371200178,0.0018501,95572.0,95571.0,0.00347217]
[1740371200494,0.0018501,95572.0,95570.0,0.10964569]
[1740371200694,0.0018501,95572.0,95571.0,0.00347217]
[1740371200895,0.0018501,95572.0,95570.0,0.10964569]
[1740371201257,0.0018501,95572.0,95571.0,0.00347217]
[1740371201459,0.0008501,95572.0,95571.0,0.00847217]
[1740371201690,0.0008501,95572.0,95571.0,0.007]
[1740371201877,0.0008501,95572.0,95571.0,0.01047217]
[1740371202446,0.0008501,95572.0,95571.0,0.01547217]
[1740371206423,0.1577991,95572.0,95571.0,0.01547217]
[1740371206850,0.1577991,95572.0,95571.0,0.012]
[1740371207822,0.1577991,95572.0,95571.0,0.007]
[1740371208016,0.156964,95564.0,95550.0,0.0494]
[1740371208266,0.20928,95566.0,95552.0,0.10390139]
[1740371208583,0.156963,95564.0,95556.0,0.156975]
[1740371208819,0.20928,95566.0,95556.0,0.156975]
[1740371209028,0.20928,95566.0,95557.0,0.00348071]
[1740371209241,0.1577991,95572.0,95571.0,0.001]
[1740371209670,0.0008501,95572.0,95555.0,0.156976]
[1740371209875,0.0008501,95572.0,95554.0,0.0012557]
[1740371210080,0.0008501,95572.0,95556.0,0.00648132]
[1740371210293,0.156972,95559.0,95556.0,0.003]
[1740371210503,0.25271346,95570.0,95557.0,0.00348071]
[1740371210701,0.156971,95559.0,95557.0,0.00348071]
[1740371211069,0.209268,95571.0,95557.0,0.00348071]
[1740371211264,0.156971,95559.0,95557.0,0.00348071]
[1740371211466,0.0008501,95572.0,95557.0,0.00348071]
[1740371211670,0.156972,95558.0,95557.0,0.00448071]
[1740371211866,0.156972,95558.0,95557.0,0.00348071]
[1740371212091,0.209289,95562.0,95555.0,0.001]
[1740371212295,0.20929,95561.0,95557.0,0.001]
[1740371212511,0.209292,95560.0,95555.0,0.001]
[1740371212716,0.209289,95562.0,95544.0,0.15824979]
[1740371212923,0.001,95558.0,95557.0,0.012]
[1740371213539,0.157972,95558.0,95557.0,0.012]
[1740371214389,0.156972,95558.0,95557.0,0.005]
[1740371214957,0.156976,95556.0,95555.0,0.006]
[1740371215172,0.156984,95551.0,95544.0,0.156994]
[1740371215550,0.001,95558.0,95549.0,0.003488]
[1740371215917,0.156972,95558.0,95557.0,0.004]
[1740371216115,0.156986,95550.0,95543.0,0.156997]
[1740371216313,0.156986,95550.0,95549.0,0.003488]
[1740371216652,0.156986,95550.0,95548.0,0.0861]
[1740371217098,0.156986,95550.0,95549.0,0.003488]
[1740371217500,0.156987,95549.0,95548.0,0.0861]
[1740371217707,0.156987,95549.0,95548.0,0.0791]
[1740371217820,0.209312,95551.0,95548.0,0.08258861]
[1740371218032,0.156987,95550.0,95548.0,0.08258861]
[1740371218533,0.001,95558.0,95542.0,0.0761]
[1740371218751,0.156987,95549.0,95548.0,0.007]
[1740371219045,0.156999,95542.0,95541.0,0.0008504]
[1740371219205,0.001,95550.0,95548.0,0.014]
[1740371219423,0.156987,95549.0,95548.0,0.014]
[1740371219800,0.156987,95549.0,95548.0,0.007]
[1740371220010,0.001,95549.0,95548.0,0.007]
[1740371220457,0.157987,95549.0,95548.0,0.007]
[1740371220794,0.001,95549.0,95548.0,0.163989]
[1740371221207,0.001,95549.0,95548.0,0.007]
[1740371221986,0.157987,95549.0,95548.0,0.014]
[1740371223547,0.001,95549.0,95548.0,0.014]
[1740371223751,0.157987,95549.0,95548.0,0.01747318]
[1740371223952,0.157987,95549.0,95548.0,0.014]
[1740371224519,0.157987,95549.0,95548.0,0.007]
[1740371224736,0.157987,95549.0,95548.0,0.012]
[1740371225601,0.156987,95549.0,95548.0,0.005]
[1740371225808,0.157987,95549.0,95548.0,0.012]
[1740371228261,0.157987,95549.0,95548.0,0.0128501]
[1740371233604,0.157987,95549.0,95548.0,0.0131301]
[1740371235637,0.001,95549.0,95548.0,0.0131301]
[1740371235847,0.001,95549.0,95548.0,0.1701191]
[1740371236049,0.001,95549.0,95548.0,0.01660537]
[1740371236885,0.157987,95549.0,95548.0,0.01660537]
[1740371237435,0.001,95549.0,95548.0,0.0131301]
[1740371237853,0.001,95549.0,95548.0,0.01660444]
[1740371238990,0.001,95549.0,95548.0,0.0131301]
[1740371240741,0.001,95549.0,95548.0,0.17359403]
[1740371240945,0.001,95549.0,95548.0,0.01660503]
[1740371242911,0.001,95549.0,95548.0,0.0131301]
[1740371243072,0.001,95549.0,95548.0,0.01660503]
[1740371243269,0.001,95549.0,95548.0,0.0131301]
[1740371243469,0.001,95549.0,95548.0,0.01660503]
[1740371244148,0.001,95549.0,95548.0,0.11925072]
[1740371247803,0.001,95549.0,95548.0,0.27623972]
[1740371248004,0.001,95549.0,95548.0,0.11925072]
[1740371248529,0.001,95549.0,95548.0,0.27623972]
[1740371248848,0.001,95549.0,95548.0,0.11925072]
[1740371249259,0.157987,95549.0,95548.0,0.11925072]
[1740371249637,0.157987,95549.0,95548.0,0.0131301]
[1740371250266,0.001,95549.0,95548.0,0.0131301]
[1740371250683,0.001,95549.0,95548.0,0.01660391]
[1740371252172,0.157987,95549.0,95548.0,0.01660391]
[1740371252601,0.157987,95549.0,95548.0,0.0131301]
[1740371262906,0.307987,95549.0,95548.0,0.0131301]
[1740371263926,0.306987,95549.0,95548.0,0.0061301]
[1740371264130,0.306987,95549.0,95548.0,0.0011301]
[1740371264349,0.309987,95549.0,95548.0,0.0011301]
[1740371264553,0.312987,95549.0,95548.0,0.0011301]
[1740371265805,0.309987,95549.0,95548.0,0.0011301]
[1740371266021,0.312987,95549.0,95548.0,0.0011301]
[1740371266628,0.309987,95549.0,95548.0,0.0011301]
[1740371266973,0.162987,95549.0,95548.0,0.0011301]
[1740371267306,0.159987,95549.0,95548.0,0.0011301]
[1740371267959,0.156987,95549.0,95548.0,0.0011301]
[1740371272635,0.209299,95557.0,95548.0,0.0011301]
[1740371272835,0.156986,95550.0,95548.0,0.0011301]
[1740371273178,0.156986,95550.0,95549.0,0.00347572]
[1740371273384,0.25271346,95560.0,95548.0,0.0011301]
[1740371273584,0.418399,95603.0,95550.0,0.156985]
[1740371273585,0.156974,95558.0,95550.0,0.156985]
[1740371273816,0.003,95557.0,95549.0,0.21279172]
[1740371274023,0.003,95557.0,95551.0,0.1604585]
[1740371274226,0.156976,95556.0,95550.0,0.00347511]
[1740371274405,0.209297,95558.0,95552.0,0.00347389]
[1740371274606,0.156972,95558.0,95549.0,0.209316]
[1740371274804,0.156972,95558.0,95551.0,0.156983]
[1740371275138,0.213292,95560.0,95552.0,0.00347389]
[1740371275333,0.156973,95558.0,95552.0,0.00347389]
[1740371275699,0.213292,95560.0,95548.0,0.0011301]
[1740371275700,0.004,95560.0,95548.0,0.0011301]
[1740371276019,0.004,95560.0,95554.0,0.156979]
[1740371276179,0.004,95560.0,95555.0,0.0457]
[1740371276379,0.535181,95565.0,95556.0,0.00347145]
[1740371276630,0.156969,95561.0,95556.0,0.00347145]
[1740371276801,0.3259,95565.0,95556.0,0.00347145]
[1740371277002,0.156964,95563.0,95556.0,0.16044645]
[1740371277628,0.156964,95563.0,95556.0,0.16344645]
[1740371277814,0.01732345,95573.0,95556.0,0.00947145]
[1740371278018,0.156966,95562.0,95556.0,0.00347145]
[1740371278237,0.209272,95569.0,95556.0,0.00347145]
[1740371278416,0.15696,95566.0,95556.0,0.01147145]
[1740371278750,0.156961,95565.0,95557.0,0.10264569]
[1740371278964,0.156965,95563.0,95557.0,0.10611653]
[1740371279517,0.156963,95564.0,95557.0,0.10611653]
[1740371279922,0.15696,95566.0,95557.0,0.10611653]
[1740371280163,0.00715907,95570.0,95558.0,0.0769]
[1740371280330,0.00715907,95570.0,95559.0,0.209294]
[1740371280541,0.156956,95568.0,95560.0,0.156968]
[1740371280817,0.156956,95568.0,95561.0,0.00346485]
[1740371281481,0.156956,95568.0,95558.0,0.0769]
[1740371281656,0.156959,95567.0,95562.0,0.00346424]
[1740371281861,0.156959,95567.0,95559.0,0.15897]
[1740371282063,0.156959,95567.0,95563.0,0.00346363]
[1740371282423,0.156957,95568.0,95559.0,0.15897]
[1740371282617,0.156957,95568.0,95564.0,0.00346302]
[1740371282808,0.156957,95568.0,95560.0,0.156969]
[1740371282998,0.156957,95568.0,95561.0,0.16043185]
[1740371283204,0.156957,95568.0,95561.0,0.16343185]
[1740371283441,0.00715907,95570.0,95561.0,0.00846485]
[1740371283622,0.209272,95569.0,95561.0,0.00646485]
[1740371283795,0.156965,95563.0,95561.0,0.00346485]
[1740371284007,0.156967,95561.0,95560.0,0.005]
[1740371284211,0.00715907,95570.0,95561.0,0.0792]
[1740371284388,0.0017002,95570.0,95569.0,0.156954]
[1740371284588,0.0017002,95570.0,95569.0,0.00345922]
[1740371284791,0.1586532,95570.0,95562.0,0.10264569]
[1740371285044,0.1586532,95570.0,95563.0,0.00346288]
[1740371285171,0.0017002,95570.0,95564.0,0.10264569]
[1740371285381,0.0017002,95570.0,95565.0,0.00346166]
[1740371285589,0.1586532,95570.0,95565.0,0.00346166]
[1740371285799,0.0017002,95570.0,95565.0,0.00346166]
[1740371286006,0.1586532,95570.0,95565.0,0.00346166]
[1740371286210,0.0017002,95570.0,95565.0,0.00346166]
[1740371286416,0.0017002,95570.0,95567.0,0.156957]
[1740371286623,0.0027002,95570.0,95569.0,0.006]
[1740371286820,0.0027002,95570.0,95569.0,0.167954]
[1740371287094,0.0017002,95570.0,95569.0,0.00345922]
[1740371287611,0.0017002,95570.0,95569.0,0.16041322]
[1740371287788,0.0017002,95570.0,95569.0,0.00345922]
[1740371288005,0.0017002,95570.0,95565.0,0.209281]
[1740371288239,0.0017002,95570.0,95569.0,0.160954]
[1740371288442,0.0017002,95570.0,95569.0,0.161954]
[1740371288651,0.0017002,95570.0,95569.0,0.00845922]
[1740371289100,0.46196246,95580.0,95569.0,0.00845922]
[1740371289300,0.48337996,95580.0,95569.0,0.00845922]
[1740371289454,0.156938,95579.0,95569.0,0.16541322]
[1740371289615,0.156938,95579.0,95569.0,0.16041322]
[1740371289823,0.48337996,95580.0,95569.0,0.00345922]
[1740371290042,0.156941,95577.0,95567.0,0.156957]
[1740371290278,0.156941,95577.0,95570.0,0.00345861]
[1740371290484,0.48337996,95580.0,95569.0,0.004]
[1740371290485,0.156946,95574.0,95569.0,0.004]
[1740371290721,0.156946,95574.0,95571.0,0.003458]
[1740371290964,0.27413096,95580.0,95569.0,0.003]
[1740371290965,0.156946,95575.0,95569.0,0.003]
[1740371291180,0.156943,95577.0,95570.0,0.00345861]
[1740371291382,0.156943,95577.0,95569.0,0.002]
[1740371291587,0.156943,95577.0,95570.0,0.00345712]
[1740371292288,0.0214175,95580.0,95570.0,0.00345712]
[1740371292480,0.156938,95579.0,95571.0,0.15695]
[1740371292616,0.156931,95583.0,95570.0,0.00345712]
[1740371292844,0.15,95585.0,95570.0,0.00345712]
[1740371293051,0.15,95582.0,95572.0,0.209266]
[1740371293204,0.15,95582.0,95570.0,0.00645712]
[1740371293415,0.15,95582.0,95570.0,0.003]
[1740371293625,0.156944,95576.0,95571.0,0.00345577]
[1740371293884,0.156944,95576.0,95569.0,0.156953]
[1740371294061,0.156944,95576.0,95572.0,0.00345516]
[1740371294275,0.156944,95576.0,95569.0,0.156953]
[1740371294474,0.156944,95576.0,95573.0,0.00345455]
[1740371294680,0.156944,95576.0,95570.0,0.156952]
[1740371294888,0.156944,95576.0,95574.0,0.00345394]
[1740371295069,0.156941,95577.0,95571.0,0.002]
[1740371295276,0.156943,95576.0,95575.0,0.00345333]
[1740371295515,0.209252,95579.0,95571.0,0.002]
[1740371295717,0.209252,95579.0,95575.0,0.00345333]
[1740371295914,0.156936,95580.0,95571.0,0.002]
[1740371296142,0.15,95584.0,95576.0,0.00345273]
[1740371296336,0.15,95580.0,95571.0,0.002]
[1740371296510,0.156938,95579.0,95577.0,0.00345212]
[1740371296716,0.156938,95579.0,95572.0,0.156949]
[1740371296918,0.156938,95579.0,95578.0,0.00340151]
[1740371297139,0.156938,95579.0,95573.0,0.156947]
[1740371297340,0.156938,95579.0,95578.0,0.00340151]
[1740371297543,0.15694,95578.0,95576.0,0.001]
[1740371298071,0.15694,95578.0,95577.0,0.00340212]
[1740371298418,0.15694,95578.0,95571.0,0.156951]
[1740371298785,0.156941,95577.0,95576.0,0.002]
[1740371299728,0.156941,95577.0,95576.0,0.0036992]
[1740371300182,0.156941,95577.0,95576.0,0.0046992]
[1740371300624,0.156941,95577.0,95576.0,0.0016992]
[1740371300835,0.156941,95577.0,95576.0,0.0046992]
[1740371301034,0.156941,95577.0,95576.0,0.0066992]
[1740371305613,0.792028,95577.0,95576.0,0.0066992]
[1740371305818,0.61884,95577.0,95576.0,0.0066992]
[1740371306018,0.69464,95577.0,95576.0,0.0066992]
[1740371306431,0.69464,95577.0,95576.0,0.0036992]
[1740371306636,0.69464,95577.0,95576.0,0.0016992]
[1740371306839,0.156941,95577.0,95576.0,0.0016992]
[1740371307036,0.157941,95577.0,95576.0,0.0016992]
[1740371310047,0.156941,95577.0,95576.0,0.0046992]
[1740371310165,0.156941,95577.0,95576.0,0.0056992]
[1740371310361,0.156941,95577.0,95576.0,0.0026992]
[1740371311352,0.156941,95577.0,95576.0,0.0036992]
[1740371315853,0.156941,95577.0,95576.0,0.0026992]
[1740371316535,0.156941,95577.0,95576.0,0.0016992]
[1740371316996,0.781288,95577.0,95576.0,0.0026992]
[1740371317208,1.21417938,95577.0,95576.0,0.0026992]
[1740371317415,0.306961,95565.0,95564.0,0.0008497]
[1740371317619,1.373108,95565.0,95564.0,0.0008497]
[1740371317821,1.790875,95565.0,95564.0,0.0008497]
[1740371318079,1.924023,95565.0,95564.0,0.0008497]
[1740371318290,1.96094097,95565.0,95564.0,0.0008497]
[1740371319863,0.156987,95549.0,95548.0,0.0008501]
[1740371321310,0.156987,95549.0,95548.0,0.0028501]
[1740371322424,0.157987,95549.0,95548.0,0.0088501]
[1740371322967,0.156987,95549.0,95548.0,0.0028501]
[1740371323317,0.156987,95549.0,95548.0,0.0048501]
[1740371325977,0.2904479,95549.0,95548.0,0.0048501]
[1740371326178,2.78818,95549.0,95548.0,0.0048501]
[1740371326347,2.858793,95549.0,95548.0,0.0048501]
[1740371326559,2.499182,95549.0,95548.0,0.0048501]
[1740371326967,1.804483,95549.0,95548.0,0.0028501]
[1740371327191,1.808483,95549.0,95548.0,0.0028501]
[1740371327905,1.808483,95549.0,95548.0,0.0008501]
[1740371328318,1.811483,95549.0,95548.0,0.0008501]
[1740371328523,1.807483,95549.0,95548.0,0.0008501]
[1740371328956,1.811483,95549.0,95548.0,0.0008501]
[1740371329471,1.808483,95549.0,95548.0,0.0008501]
[1740371329677,1.91412869,95549.0,95548.0,0.0008501]
[1740371330923,1.9206838,95549.0,95548.0,0.0008501]
[1740371331669,1.8003608,95549.0,95548.0,0.0008501]
[1740371331874,1.4693278,95549.0,95548.0,0.0008501]
[1740371332456,1.46277269,95549.0,95548.0,0.0008501]
[1740371332773,0.306999,95542.0,95541.0,0.0008504]
[1740371332981,0.40964469,95542.0,95541.0,0.0008504]
[1740371333155,2.96493769,95542.0,95541.0,0.0008504]
[1740371334128,2.96893769,95542.0,95541.0,0.0008504]
[1740371334273,3.07458338,95542.0,95541.0,0.0008504]
[1740371335300,3.07878038,95542.0,95541.0,0.0008504]
[1740371336083,3.08533606,95542.0,95541.0,0.0008504]
[1740371337034,3.41123606,95542.0,95541.0,0.0008504]
[1740371337431,3.49343606,95542.0,95541.0,0.0008504]
[1740371337664,3.48688038,95542.0,95541.0,0.0008504]
[1740371338176,0.93158738,95542.0,95541.0,0.0008504]
[1740371338357,0.93703569,95542.0,95541.0,0.0008504]
[1740371338565,3.49232869,95542.0,95541.0,0.0008504]
[1740371338968,0.307018,95530.0,95525.0,0.0016986]
[1740371339174,2.071125,95530.0,95525.0,0.0016986]
[1740371339307,2.556745,95530.0,95525.0,0.0016986]
[1740371339510,2.76286469,95530.0,95525.0,0.0016986]
[1740371340120,2.73552769,95530.0,95529.0,0.0026996]
[1740371340343,2.71866769,95530.0,95529.0,0.0036996]
[1740371340955,2.59520569,95530.0,95529.0,0.0036996]
[1740371341377,2.59520569,95530.0,95529.0,0.0026996]
[1740371341643,2.59520569,95530.0,95525.0,0.0006986]
[1740371341644,0.307025,95526.0,95525.0,0.0006986]
[1740371341850,2.862318,95526.0,95525.0,0.0006986]
[1740371342806,2.96496369,95526.0,95525.0,0.0006986]
[1740371343007,0.821747,95526.0,95525.0,0.0006986]
[1740371343237,0.615177,95526.0,95525.0,0.0006986]
[1740371343976,0.62173339,95526.0,95525.0,0.0006986]
[1740371344098,0.63164526,95526.0,95525.0,0.0006986]
[1740371344963,0.63364526,95526.0,95525.0,0.0006986]
[1740371348004,0.62708887,95526.0,95525.0,0.0006986]
[1740371350554,0.65856487,95526.0,95525.0,0.0006986]
[1740371351951,0.35041287,95526.0,95525.0,0.0006986]
[1740371352357,1.79035563,95526.0,95525.0,0.0006986]
[1740371352623,1.75736287,95526.0,95525.0,0.0006986]
[1740371357838,1.76391917,95526.0,95525.0,0.0006986]
[1740371358692,1.87203177,95526.0,95525.0,0.0006986]
[1740371359306,0.307048,95512.0,95504.0,0.0477]
[1740371359512,0.307048,95512.0,95500.0,0.1072927]
[1740371360156,0.31032623,95512.0,95500.0,0.1072927]
[1740371360363,0.31688253,95512.0,95500.0,0.1072927]
[1740371360571,2.16771053,95512.0,95500.0,0.1072927]
[1740371360798,1.67974253,95512.0,95500.0,0.1072927]
[1740371361281,1.60712953,95512.0,95500.0,0.1072927]
[1740371361490,1.18214353,95512.0,95511.0,0.0034]
[1740371361642,1.18314353,95512.0,95511.0,0.0034]
[1740371361846,1.19363497,95512.0,95511.0,0.0004]
[1740371363240,1.17257897,95512.0,95511.0,0.0004]
[1740371363352,1.16208753,95512.0,95511.0,0.0004]
[1740371363770,1.16184753,95512.0,95511.0,0.0004]
[1740371363979,1.1585693,95512.0,95511.0,0.0004]
[1740371367038,1.1900493,95512.0,95511.0,0.0004]
[1740371367257,1.19332788,95512.0,95511.0,0.0004]
[1740371370298,1.92365588,95512.0,95511.0,0.0004]
[1740371370440,1.68365588,95512.0,95511.0,0.0004]
[1740371370825,1.6803773,95512.0,95511.0,0.0004]
[1740371371036,1.5453083,95512.0,95511.0,0.0004]
[1740371371611,1.1901773,95512.0,95511.0,0.0004]
[1740371372022,1.1901773,95512.0,95511.0,0.00125]
[1740371374443,1.1586993,95512.0,95511.0,0.00125]
[1740371374875,0.9060573,95512.0,95511.0,0.00125]
[1740371375592,0.868021,95512.0,95511.0,0.00125]
[1740371376165,0.157066,95501.0,95500.0,0.1072927]
[1740371376369,0.307066,95501.0,95500.0,0.1072927]
[1740371377740,1.89263569,95501.0,95480.0,0.0016996]
[1740371377940,0.157099,95481.0,95480.0,0.0016996]
[1740371378143,1.745134,95481.0,95480.0,0.0016996]
[1740371378349,1.317752,95481.0,95480.0,0.0016996]
[1740371378556,0.307099,95481.0,95480.0,0.0016996]
[1740371378809,0.00772665,95487.0,95480.0,0.0016996]
[1740371379007,0.157099,95482.0,95480.0,0.0026996]
[1740371379211,0.157099,95481.0,95480.0,0.0016996]
[1740371379420,0.157097,95482.0,95480.0,0.0016996]
[1740371379632,0.003,95481.0,95480.0,0.0016996]
[1740371380244,0.209459,95484.0,95480.0,0.0016996]
[1740371380449,0.157098,95482.0,95480.0,0.0016996]
[1740371380625,0.209451,95488.0,95480.0,0.0016996]
[1740371380826,0.004,95481.0,95480.0,0.0016996]
[1740371381361,0.157097,95482.0,95480.0,0.0016996]
[1740371381713,0.157097,95482.0,95480.0,0.0046996]
[1740371382121,0.209458,95485.0,95480.0,0.0046996]
[1740371382486,0.16611137,95500.0,95480.0,0.0046996]
[1740371382690,0.157097,95482.0,95480.0,0.0046996]
[1740371382888,0.157097,95482.0,95480.0,0.0076996]
[1740371383105,0.157097,95482.0,95480.0,0.0046996]
[1740371383302,0.157097,95482.0,95480.0,0.0066996]
[1740371384355,0.157097,95482.0,95480.0,0.0036996]
[1740371385204,0.157097,95482.0,95480.0,0.0066996]
[1740371385407,0.157097,95482.0,95480.0,0.0046996]
[1740371385944,0.157097,95482.0,95480.0,0.0076996]
[1740371386339,0.0077635,95499.0,95480.0,0.0076996]
[1740371386541,0.157093,95485.0,95480.0,0.0076996]
[1740371386751,0.209443,95492.0,95480.0,0.0076996]
[1740371386945,0.157094,95484.0,95480.0,0.0076996]
[1740371387455,0.157094,95484.0,95480.0,0.0046996]
[1740371387651,0.157089,95487.0,95480.0,0.0046996]
[1740371387850,0.209448,95489.0,95480.0,0.0016996]
[1740371388086,0.157091,95486.0,95481.0,0.0032109]
[1740371388438,0.209448,95489.0,95481.0,0.0032109]
[1740371388618,0.157091,95486.0,95481.0,0.0032109]
[1740371388830,0.157086,95489.0,95481.0,0.0032109]
[1740371389169,0.16623424,95490.0,95483.0,0.0786]
[1740371389388,0.32331824,95490.0,95483.0,0.0786]
[1740371389577,0.32331824,95490.0,95484.0,0.00321161]
[1740371389781,0.00012287,95490.0,95484.0,0.00321161]
[1740371390148,0.157086,95489.0,95483.0,0.0786]
[1740371390569,0.157086,95489.0,95484.0,0.00321161]
[1740371390788,0.00012287,95490.0,95484.0,0.00321161]
[1740371391148,0.00012287,95490.0,95483.0,0.0786]
[1740371391149,0.00012287,95490.0,95489.0,0.157086]
[1740371391350,0.00012287,95490.0,95489.0,0.33778825]
[1740371391557,0.00012287,95490.0,95489.0,0.33653169]
[1740371391783,0.00012287,95490.0,95489.0,0.35428112]
[1740371392555,0.00012287,95490.0,95489.0,0.40628112]
[1740371392757,0.00012287,95490.0,95489.0,0.40228112]
[1740371393187,0.00112287,95490.0,95489.0,0.40728112]
[1740371393359,0.00112287,95490.0,95489.0,0.4249221]
[1740371393570,0.00112287,95490.0,95489.0,0.40728112]
[1740371393998,0.00212287,95490.0,95489.0,0.41328112]
[1740371394199,0.00212287,95490.0,95489.0,0.43124839]
[1740371395048,0.00212287,95490.0,95489.0,0.75264839]
[1740371397639,0.0016998,95512.0,95511.0,0.284249]
[1740371397847,0.0016998,95512.0,95511.0,0.74283554]
[1740371398105,0.0016998,95512.0,95511.0,0.72602648]
[1740371398499,0.0016998,95512.0,95511.0,0.39008563]
[1740371398952,0.0026998,95512.0,95511.0,0.39708563]
[1740371399373,0.0016998,95512.0,95511.0,0.39008563]
[1740371399596,0.0026998,95512.0,95511.0,0.39708563]
[1740371399789,0.0026998,95512.0,95511.0,0.39008563]
[1740371399907,0.0026998,95512.0,95511.0,0.39708563]
[1740371400313,0.0026998,95512.0,95511.0,0.24003663]
[1740371400518,0.0026998,95512.0,95511.0,0.10583663]
[1740371400937,0.0026998,95512.0,95511.0,0.11283663]
[1740371401213,0.0026998,95512.0,95511.0,0.01619094]
[1740371401353,0.0026998,95512.0,95511.0,0.00919094]
[1740371401577,0.0016998,95512.0,95511.0,0.00819094]
[1740371401798,0.0016998,95512.0,95511.0,0.01219094]
[1740371403124,0.0016998,95512.0,95511.0,0.00719094]
[1740371403413,0.0016998,95512.0,95511.0,0.01419094]
[1740371405219,0.1516998,95512.0,95511.0,0.01419094]
[1740371405420,0.5140258,95512.0,95511.0,0.01419094]
[1740371405624,0.5908258,95512.0,95511.0,0.01419094]
[1740371405840,0.9167258,95512.0,95511.0,0.01419094]
[1740371406045,1.01937149,95512.0,95511.0,0.01419094]
[1740371406657,1.01937149,95512.0,95511.0,0.00719094]
[1740371407365,0.209399,95511.0,95480.0,0.0016996]
[1740371407568,0.25309144,95490.0,95480.0,0.10434529]
[1740371407865,0.157098,95482.0,95480.0,0.10434529]
[1740371408441,0.157098,95482.0,95480.0,0.0016996]
[1740371408643,0.15,95481.0,95480.0,0.0016996]
[1740371408812,0.15,95481.0,95480.0,0.0036996]
[1740371409255,0.15,95481.0,95480.0,0.0016996]
[1740371409454,0.15,95481.0,95480.0,0.0036996]
[1740371409455,0.15327932,95481.0,95480.0,0.0036996]
[1740371409803,0.62354032,95481.0,95480.0,0.0016996]
[1740371409952,0.63009914,95481.0,95480.0,0.0016996]
[1740371410532,0.63009914,95481.0,95480.0,0.0056996]
[1740371410739,0.73274483,95481.0,95480.0,0.0056996]
[1740371410941,0.73274483,95481.0,95480.0,0.0016996]
[1740371411073,0.73274483,95481.0,95480.0,0.0056996]
[1740371411275,0.73274483,95481.0,95480.0,0.0066996]
[1740371411682,0.63009914,95481.0,95480.0,0.0066996]
[1740371412282,0.15983814,95481.0,95480.0,0.0066996]
[1740371412481,0.00983814,95481.0,95480.0,0.0056996]
[1740371413050,0.01183814,95481.0,95480.0,0.15754529]
[1740371413162,0.01183814,95481.0,95480.0,0.15354529]
[1740371413368,0.00855882,95481.0,95480.0,0.16808614]
[1740371413617,0.00855882,95481.0,95480.0,0.16934267]
[1740371414193,0.25309144,95520.0,95480.0,0.49774267]
[1740371414392,0.01814874,95516.0,95510.0,0.15705]
[1740371414616,0.09311199,95523.0,95510.0,0.15705]
[1740371414617,0.157033,95521.0,95510.0,0.15705]
[1740371414819,0.09311199,95523.0,95511.0,0.10390201]
[1740371415177,0.09311199,95523.0,95511.0,0.10264569]
[1740371415379,0.09311199,95523.0,95511.0,0.11844268]
[1740371415580,0.0017,95529.0,95517.0,0.157039]
[1740371415850,0.0017,95529.0,95518.0,0.10390182]
[1740371416262,0.0017,95529.0,95522.0,0.157031]
[1740371416480,0.0017,95529.0,95527.0,0.157022]
[1740371416695,0.0017,95529.0,95528.0,0.10390169]
[1740371416904,0.0017,95529.0,95528.0,0.10264569]
[1740371417329,0.0017,95529.0,95513.0,0.157045]
[1740371417543,0.15703,95523.0,95522.0,0.005]
[1740371417979,0.209362,95528.0,95514.0,0.10264569]
[1740371418194,0.001,95529.0,95514.0,0.10264569]
[1740371418195,0.001,95529.0,95515.0,0.002661]
[1740371418413,0.23360898,95531.0,95528.0,0.006]
[1740371418624,0.209358,95530.0,95528.0,0.006]
[1740371418833,0.15,95529.0,95528.0,0.006]
[1740371419480,0.03971964,95529.0,95528.0,0.006]
[1740371419684,0.00545718,95531.0,95519.0,0.209381]
[1740371419890,0.25301329,95540.0,95528.0,0.00265464]
[1740371419891,0.209342,95537.0,95528.0,0.00265464]
[1740371420094,0.00852224,95529.0,95523.0,0.157029]
[1740371420349,0.00852224,95529.0,95524.0,0.157027]
[1740371420549,0.00852224,95529.0,95524.0,0.00265708]
[1740371420757,0.00852224,95529.0,95528.0,0.002]
[1740371421222,0.00852224,95529.0,95511.0,0.2102477]
[1740371421478,0.157028,95524.0,95523.0,0.001]
[1740371421683,0.00852224,95529.0,95512.0,0.00266441]
[1740371421884,0.157037,95519.0,95511.0,0.0008497]
[1740371422098,0.15702,95529.0,95528.0,0.001]
[1740371422276,0.157045,95514.0,95512.0,0.00266375]
[1740371422481,0.157042,95516.0,95511.0,0.0008497]